{"text_format":"1","workbook":"xlsx","n_sheets":3,"sheets":["Keterangan","dbase","template"],"not_rendered":{"charts":0,"images":0,"macros":1,"external_links":0,"defined_names":2,"comments":0,"pivot_tables":0},"unopened":[],"bounds":{"document_bytes":16777216,"sheet_cells":100000,"rows_first":2000,"rows_last":500,"rows_between":2000,"halvings":0,"cell_chars":16384,"cell_head_chars":4096},"cells_cut":0,"cells_raw":0,"read":"whole","date_system":"1900"}

{"sheet":"Keterangan","index":0,"n_rows":11,"n_cols":5,"rows_kept":11,"cut":false,"hidden":false,"merged":[]}
[]
[null,"Tipe Mesin","Keterangan",null,"Kode Lokasi"]
[null,"MA150","Mesin kapasitas 150 ton merk MA",null,"AKS"]
[null,"MA100","Mesin kapasitas 100 ton merk MA",null,"BKS"]
[null,"MA075","Mesin kapasitas 75 ton merk MA",null,"CKS"]
[null,"MB150","Mesin kapasitas 150 ton merk MB",null,"AJD"]
[null,"MB100","Mesin kapasitas 100 ton merk MB",null,"BJD"]
[null,"MB075","Mesin kapasitas 75 ton merk MB",null,":"]
[null,":",null,null,":"]
[null,":",null,null,"dst"]
[null,"dst"]

{"sheet":"dbase","index":1,"n_rows":57,"n_cols":15,"rows_kept":57,"cut":false,"hidden":false,"merged":[]}
[]
[null,"Tipe Mesin","Kode Mesin","Jan","Feb","Mar","Apr","May","Jun","Jul","Aug","Sep","Oct","Nov","Dec"]
[null,"MA150","MA150001","AKS","AKS","AKS","AKS","AKS","AKS","AKS","AKS","AKS","AKS","AKS","AKS"]
[null,"MA150","MA150002","AKS","AKS","AKS","BKS","BKS","BKS","BKS","BKS","BKS","BKS","BKS","BKS"]
[null,"MA150","MA150003","AKS","AKS","AKS","AKS","AKS","AKS","AKS","AKS","AKS","AKS","AKS","AKS"]
[null,"MA150","MA150004","BKS","BKS","BKS","BKS","BKS","BKS","BKS","BKS","BKS","BKS","BKS","BKS"]
[null,"MA150","MA150005","BKS","BKS","BKS","BKS","BKS","BKS","BJD","BJD","BJD","BJD","BJD","BJD"]
[null,"MA150","MA150006","BKS","BKS","BKS","BKS","BKS","BKS","BKS","BKS","BKS","BKS","BKS","BKS"]
[null,"MA150","MA150007","CKS","CKS","CKS","CKS","CKS","CKS","CKS","CKS","CKS","CKS","CKS","CKS"]
[null,"MA150","MA150008","CKS","CKS","CKS","CKS","CKS","CKS","BKS","BKS","BKS","BKS","BKS","BKS"]
[null,"MA150","MA150009","CKS","CKS","CKS","CKS","CKS","CKS","CKS","CKS","CKS","CKS","CKS","CKS"]
[null,"MA150","MA150010","AJD","AJD","AJD","AJD","AJD","AJD","AJD","AJD","AJD","AJD","AJD","AJD"]
[null,"MA150","MA150011","BJD","BJD","BJD","BJD","BJD","BJD","BJD","BJD","BJD","BJD","BJD","BJD"]
[null,"MA150","MA150012","BJD","BJD","BJD","BJD","BJD","BJD","BJD","BJD","BJD","BJD","BJD","BJD"]
[null,"MA150","MA150013",null,null,null,null,"BJD","BJD","BJD","BJD","BJD","BJD","BJD","BJD"]
[null,"MA100","MA100001","AKS","AKS","AKS","AKS","AKS","AKS","AKS","AKS","AKS","AKS","AKS","AKS"]
[null,"MA100","MA100002","AKS","AKS","AKS","AKS","AKS","AKS","AKS","AKS","AKS","AKS","AKS","AKS"]
[null,"MA100","MA100003","AKS","AKS","AKS","AKS","AKS","AKS","AKS","AKS","AKS","AKS","AKS","AKS"]
[null,"MA100","MA100004","BKS","BKS","BKS","BKS","BKS","BKS","BKS","BKS","BKS","BKS","BKS","BKS"]
[null,"MA100","MA100005","BKS","BKS","BKS","BKS","BKS","BKS","BKS","BKS","BKS","BKS","BKS","BKS"]
[null,"MA100","MA100006","BKS","BKS","BKS","BKS","BKS","BKS","BKS","BKS","BKS","BKS","BKS","BKS"]
[null,"MA100","MA100007","CKS","CKS","CKS","CKS","CKS","CKS","CKS","CKS","CKS","CKS","CKS","CKS"]
[null,"MA100","MA100008","CKS","CKS","CKS","CKS","CKS","CKS","CKS","CKS","CKS","CKS","CKS","CKS"]
[null,"MA075","MA075001","CKS","CKS","CKS","CKS","CKS","CKS","CKS","CKS","CKS","CKS","CKS","CKS"]
[null,"MA075","MA075002","AKS","AKS","AKS","AKS","AKS","AKS","AKS","AKS","AKS","AKS","AKS","AKS"]
[null,"MA075","MA075003","AKS","AKS","AKS","AKS","AKS","AKS","AKS","AKS","AKS","AKS","AKS","AKS"]
[null,"MA075","MA075004","BKS","BKS","BKS","BKS","BKS","BKS","BKS","BKS","BKS","BKS","BKS","BKS"]
[null,"MA075","MA075005","BKS","BKS","BKS","BKS","BKS","BKS","BKS","BKS","BKS","BKS","BKS","BKS"]
[null,"MA075","MA075006","BKS","BKS","BKS","BKS","BKS","BKS","BKS","BKS","BKS","BKS","BKS","BKS"]
[null,"MA075","MA075007",null,null,null,null,null,null,null,null,"CKS","CKS","CKS","CKS"]
[null,"MB150","MB150001","CKS","CKS","CKS","CKS","CKS","CKS","CKS","CKS","CKS","CKS","CKS","CKS"]
[null,"MB150","MB150002","CKS","CKS","CKS","CKS","CKS","CKS","CKS","CKS","CKS","CKS","CKS","CKS"]
[null,"MB150","MB150003","AJD","AJD","AJD","AJD","AJD","AJD","AJD","AJD","AJD","AJD","AJD","AJD"]
[null,"MB150","MB150004","BJD","BJD","BJD","BJD","BJD","BJD","BJD","BJD","BJD","BJD","BJD","BJD"]
[null,"MB150","MB150005","CKS","CKS","CKS","CKS","CKS","CKS","CKS","CKS","CKS","CKS","CKS","CKS"]
[null,"MB150","MB150006","AJD","AJD","AJD","AJD","AJD","AJD","AJD","AJD","AJD","AJD","AJD","AJD"]
[null,"MB150","MB150007","BJD","BJD","BJD","BJD","BJD","BJD","BJD","BJD","BJD","BJD","BJD","BJD"]
[null,"MB150","MB150008","AKS","AKS","AKS","AKS","AKS","AKS","AKS","AKS","AKS","AKS","AKS","AKS"]
[null,"MB150","MB150009","AKS","AKS","AKS","AKS","AKS","AKS","AKS","AKS","AKS","AKS","AKS","AKS"]
[null,"MB150","MB150010","BKS","BKS","BKS","AKS","AKS","AKS","AKS","AKS","AKS","AKS","AKS","AKS"]
[null,"MB150","MB150011","BKS","BKS","BKS","BKS","BKS","BKS","BKS","BKS","BKS","BKS","BKS","BKS"]
[null,"MB150","MB150012","BKS","BKS","BKS","BKS","BKS","CKS","CKS","CKS","CKS","CKS","CKS","CKS"]
[null,"MB150","MB150013","CKS","CKS","CKS","CKS","CKS","CKS","CKS","CKS","CKS","CKS","CKS","CKS"]
[null,"MB150","MB150014",null,null,"CKS","CKS","CKS","CKS","CKS","CKS","CKS","CKS","CKS","CKS"]
[null,"MB100","MB100001","CKS","CKS","CKS","CKS","CKS","CKS","CKS","CKS","CKS","CKS","CKS","CKS"]
[null,"MB100","MB100002","AJD","AJD","AJD","AJD","AJD","AJD","AJD","AJD","AJD","AJD","AJD","AJD"]
[null,"MB100","MB100003","BJD","BJD","BJD","BJD","BJD","BJD","BJD","BJD","BJD","BJD","BJD","BJD"]
[null,"MB100","MB100004","CKS","CKS","CKS","CKS","CKS","CKS","CKS","CKS","CKS","CKS","CKS","CKS"]
[null,"MB100","MB100005","AJD","AJD","AJD","AJD","AJD","AJD","AJD","AJD","AJD","AJD","AJD","AJD"]
[null,"MB100","MB100006","CKS","CKS","CKS","CKS","CKS","CKS","CKS","CKS","CKS","CKS","CKS","CKS"]
[null,"MB100","MB100007","CKS","CKS","CKS","CKS","CKS","CKS","CKS","CKS","CKS","CKS","CKS","CKS"]
[null,"MB075","MB075001","CKS","CKS","CKS","CKS","CKS","CKS","CKS","CKS","CKS","CKS","CKS","CKS"]
[null,"MB075","MB075002","AJD","AJD","AJD","AJD","AJD","AJD","AJD","AJD","AJD","AJD","AJD","AJD"]
[null,"MB075","MB075003","BJD","BJD","BJD","BJD","BJD","BJD","BJD","BJD","BJD","BJD","BJD","BJD"]
[null,"MB075","MB075004","CKS","CKS","AJD","AJD","AJD","AJD","AJD","AJD","AJD","AJD","AJD","AJD"]
[null,"MB075","MB075005","AJD","AJD","AJD","AJD","AJD","AJD","AJD","AJD","AJD","AJD","AJD","AJD"]
[null,"MB075","MB075006",null,null,null,null,null,null,null,"AJD","AJD","AJD","AJD","AJD"]

{"sheet":"template","index":2,"n_rows":8,"n_cols":14,"rows_kept":8,"cut":false,"hidden":false,"merged":[]}
[]
[null,"CKS","Jan","Feb","Mar","Apr","May","Jun","Jul","Aug","Sep","Oct","Nov","Dec"]
[null,"MA150",{"$f":"COUNTIFS(OFFSET(Tipe_Mesin,0,1+COLUMN()-COLUMN($B$2)),$B$2,Tipe_Mesin,$B3)","v":3},{"$f":"COUNTIFS(OFFSET(Tipe_Mesin,0,1+COLUMN()-COLUMN($B$2)),$B$2,Tipe_Mesin,$B3)","v":3},{"$f":"COUNTIFS(OFFSET(Tipe_Mesin,0,1+COLUMN()-COLUMN($B$2)),$B$2,Tipe_Mesin,$B3)","v":3},{"$f":"COUNTIFS(OFFSET(Tipe_Mesin,0,1+COLUMN()-COLUMN($B$2)),$B$2,Tipe_Mesin,$B3)","v":3},{"$f":"COUNTIFS(OFFSET(Tipe_Mesin,0,1+COLUMN()-COLUMN($B$2)),$B$2,Tipe_Mesin,$B3)","v":3},{"$f":"COUNTIFS(OFFSET(Tipe_Mesin,0,1+COLUMN()-COLUMN($B$2)),$B$2,Tipe_Mesin,$B3)","v":3},{"$f":"COUNTIFS(OFFSET(Tipe_Mesin,0,1+COLUMN()-COLUMN($B$2)),$B$2,Tipe_Mesin,$B3)","v":2},{"$f":"COUNTIFS(OFFSET(Tipe_Mesin,0,1+COLUMN()-COLUMN($B$2)),$B$2,Tipe_Mesin,$B3)","v":2},{"$f":"COUNTIFS(OFFSET(Tipe_Mesin,0,1+COLUMN()-COLUMN($B$2)),$B$2,Tipe_Mesin,$B3)","v":2},{"$f":"COUNTIFS(OFFSET(Tipe_Mesin,0,1+COLUMN()-COLUMN($B$2)),$B$2,Tipe_Mesin,$B3)","v":2},{"$f":"COUNTIFS(OFFSET(Tipe_Mesin,0,1+COLUMN()-COLUMN($B$2)),$B$2,Tipe_Mesin,$B3)","v":2},{"$f":"COUNTIFS(OFFSET(Tipe_Mesin,0,1+COLUMN()-COLUMN($B$2)),$B$2,Tipe_Mesin,$B3)","v":2}]
[null,"MA100",{"$f":"COUNTIFS(OFFSET(Tipe_Mesin,0,1+COLUMN()-COLUMN($B$2)),$B$2,Tipe_Mesin,$B4)","v":2},{"$f":"COUNTIFS(OFFSET(Tipe_Mesin,0,1+COLUMN()-COLUMN($B$2)),$B$2,Tipe_Mesin,$B4)","v":2},{"$f":"COUNTIFS(OFFSET(Tipe_Mesin,0,1+COLUMN()-COLUMN($B$2)),$B$2,Tipe_Mesin,$B4)","v":2},{"$f":"COUNTIFS(OFFSET(Tipe_Mesin,0,1+COLUMN()-COLUMN($B$2)),$B$2,Tipe_Mesin,$B4)","v":2},{"$f":"COUNTIFS(OFFSET(Tipe_Mesin,0,1+COLUMN()-COLUMN($B$2)),$B$2,Tipe_Mesin,$B4)","v":2},{"$f":"COUNTIFS(OFFSET(Tipe_Mesin,0,1+COLUMN()-COLUMN($B$2)),$B$2,Tipe_Mesin,$B4)","v":2},{"$f":"COUNTIFS(OFFSET(Tipe_Mesin,0,1+COLUMN()-COLUMN($B$2)),$B$2,Tipe_Mesin,$B4)","v":2},{"$f":"COUNTIFS(OFFSET(Tipe_Mesin,0,1+COLUMN()-COLUMN($B$2)),$B$2,Tipe_Mesin,$B4)","v":2},{"$f":"COUNTIFS(OFFSET(Tipe_Mesin,0,1+COLUMN()-COLUMN($B$2)),$B$2,Tipe_Mesin,$B4)","v":2},{"$f":"COUNTIFS(OFFSET(Tipe_Mesin,0,1+COLUMN()-COLUMN($B$2)),$B$2,Tipe_Mesin,$B4)","v":2},{"$f":"COUNTIFS(OFFSET(Tipe_Mesin,0,1+COLUMN()-COLUMN($B$2)),$B$2,Tipe_Mesin,$B4)","v":2},{"$f":"COUNTIFS(OFFSET(Tipe_Mesin,0,1+COLUMN()-COLUMN($B$2)),$B$2,Tipe_Mesin,$B4)","v":2}]
[null,"MA075",{"$f":"COUNTIFS(OFFSET(Tipe_Mesin,0,1+COLUMN()-COLUMN($B$2)),$B$2,Tipe_Mesin,$B5)","v":1},{"$f":"COUNTIFS(OFFSET(Tipe_Mesin,0,1+COLUMN()-COLUMN($B$2)),$B$2,Tipe_Mesin,$B5)","v":1},{"$f":"COUNTIFS(OFFSET(Tipe_Mesin,0,1+COLUMN()-COLUMN($B$2)),$B$2,Tipe_Mesin,$B5)","v":1},{"$f":"COUNTIFS(OFFSET(Tipe_Mesin,0,1+COLUMN()-COLUMN($B$2)),$B$2,Tipe_Mesin,$B5)","v":1},{"$f":"COUNTIFS(OFFSET(Tipe_Mesin,0,1+COLUMN()-COLUMN($B$2)),$B$2,Tipe_Mesin,$B5)","v":1},{"$f":"COUNTIFS(OFFSET(Tipe_Mesin,0,1+COLUMN()-COLUMN($B$2)),$B$2,Tipe_Mesin,$B5)","v":1},{"$f":"COUNTIFS(OFFSET(Tipe_Mesin,0,1+COLUMN()-COLUMN($B$2)),$B$2,Tipe_Mesin,$B5)","v":1},{"$f":"COUNTIFS(OFFSET(Tipe_Mesin,0,1+COLUMN()-COLUMN($B$2)),$B$2,Tipe_Mesin,$B5)","v":1},{"$f":"COUNTIFS(OFFSET(Tipe_Mesin,0,1+COLUMN()-COLUMN($B$2)),$B$2,Tipe_Mesin,$B5)","v":2},{"$f":"COUNTIFS(OFFSET(Tipe_Mesin,0,1+COLUMN()-COLUMN($B$2)),$B$2,Tipe_Mesin,$B5)","v":2},{"$f":"COUNTIFS(OFFSET(Tipe_Mesin,0,1+COLUMN()-COLUMN($B$2)),$B$2,Tipe_Mesin,$B5)","v":2},{"$f":"COUNTIFS(OFFSET(Tipe_Mesin,0,1+COLUMN()-COLUMN($B$2)),$B$2,Tipe_Mesin,$B5)","v":2}]
[null,"MB150",{"$f":"COUNTIFS(OFFSET(Tipe_Mesin,0,1+COLUMN()-COLUMN($B$2)),$B$2,Tipe_Mesin,$B6)","v":4},{"$f":"COUNTIFS(OFFSET(Tipe_Mesin,0,1+COLUMN()-COLUMN($B$2)),$B$2,Tipe_Mesin,$B6)","v":4},{"$f":"COUNTIFS(OFFSET(Tipe_Mesin,0,1+COLUMN()-COLUMN($B$2)),$B$2,Tipe_Mesin,$B6)","v":5},{"$f":"COUNTIFS(OFFSET(Tipe_Mesin,0,1+COLUMN()-COLUMN($B$2)),$B$2,Tipe_Mesin,$B6)","v":5},{"$f":"COUNTIFS(OFFSET(Tipe_Mesin,0,1+COLUMN()-COLUMN($B$2)),$B$2,Tipe_Mesin,$B6)","v":5},{"$f":"COUNTIFS(OFFSET(Tipe_Mesin,0,1+COLUMN()-COLUMN($B$2)),$B$2,Tipe_Mesin,$B6)","v":6},{"$f":"COUNTIFS(OFFSET(Tipe_Mesin,0,1+COLUMN()-COLUMN($B$2)),$B$2,Tipe_Mesin,$B6)","v":6},{"$f":"COUNTIFS(OFFSET(Tipe_Mesin,0,1+COLUMN()-COLUMN($B$2)),$B$2,Tipe_Mesin,$B6)","v":6},{"$f":"COUNTIFS(OFFSET(Tipe_Mesin,0,1+COLUMN()-COLUMN($B$2)),$B$2,Tipe_Mesin,$B6)","v":6},{"$f":"COUNTIFS(OFFSET(Tipe_Mesin,0,1+COLUMN()-COLUMN($B$2)),$B$2,Tipe_Mesin,$B6)","v":6},{"$f":"COUNTIFS(OFFSET(Tipe_Mesin,0,1+COLUMN()-COLUMN($B$2)),$B$2,Tipe_Mesin,$B6)","v":6},{"$f":"COUNTIFS(OFFSET(Tipe_Mesin,0,1+COLUMN()-COLUMN($B$2)),$B$2,Tipe_Mesin,$B6)","v":6}]
[null,"MB100",{"$f":"COUNTIFS(OFFSET(Tipe_Mesin,0,1+COLUMN()-COLUMN($B$2)),$B$2,Tipe_Mesin,$B7)","v":4},{"$f":"COUNTIFS(OFFSET(Tipe_Mesin,0,1+COLUMN()-COLUMN($B$2)),$B$2,Tipe_Mesin,$B7)","v":4},{"$f":"COUNTIFS(OFFSET(Tipe_Mesin,0,1+COLUMN()-COLUMN($B$2)),$B$2,Tipe_Mesin,$B7)","v":4},{"$f":"COUNTIFS(OFFSET(Tipe_Mesin,0,1+COLUMN()-COLUMN($B$2)),$B$2,Tipe_Mesin,$B7)","v":4},{"$f":"COUNTIFS(OFFSET(Tipe_Mesin,0,1+COLUMN()-COLUMN($B$2)),$B$2,Tipe_Mesin,$B7)","v":4},{"$f":"COUNTIFS(OFFSET(Tipe_Mesin,0,1+COLUMN()-COLUMN($B$2)),$B$2,Tipe_Mesin,$B7)","v":4},{"$f":"COUNTIFS(OFFSET(Tipe_Mesin,0,1+COLUMN()-COLUMN($B$2)),$B$2,Tipe_Mesin,$B7)","v":4},{"$f":"COUNTIFS(OFFSET(Tipe_Mesin,0,1+COLUMN()-COLUMN($B$2)),$B$2,Tipe_Mesin,$B7)","v":4},{"$f":"COUNTIFS(OFFSET(Tipe_Mesin,0,1+COLUMN()-COLUMN($B$2)),$B$2,Tipe_Mesin,$B7)","v":4},{"$f":"COUNTIFS(OFFSET(Tipe_Mesin,0,1+COLUMN()-COLUMN($B$2)),$B$2,Tipe_Mesin,$B7)","v":4},{"$f":"COUNTIFS(OFFSET(Tipe_Mesin,0,1+COLUMN()-COLUMN($B$2)),$B$2,Tipe_Mesin,$B7)","v":4},{"$f":"COUNTIFS(OFFSET(Tipe_Mesin,0,1+COLUMN()-COLUMN($B$2)),$B$2,Tipe_Mesin,$B7)","v":4}]
[null,"MB075",{"$f":"COUNTIFS(OFFSET(Tipe_Mesin,0,1+COLUMN()-COLUMN($B$2)),$B$2,Tipe_Mesin,$B8)","v":2},{"$f":"COUNTIFS(OFFSET(Tipe_Mesin,0,1+COLUMN()-COLUMN($B$2)),$B$2,Tipe_Mesin,$B8)","v":2},{"$f":"COUNTIFS(OFFSET(Tipe_Mesin,0,1+COLUMN()-COLUMN($B$2)),$B$2,Tipe_Mesin,$B8)","v":1},{"$f":"COUNTIFS(OFFSET(Tipe_Mesin,0,1+COLUMN()-COLUMN($B$2)),$B$2,Tipe_Mesin,$B8)","v":1},{"$f":"COUNTIFS(OFFSET(Tipe_Mesin,0,1+COLUMN()-COLUMN($B$2)),$B$2,Tipe_Mesin,$B8)","v":1},{"$f":"COUNTIFS(OFFSET(Tipe_Mesin,0,1+COLUMN()-COLUMN($B$2)),$B$2,Tipe_Mesin,$B8)","v":1},{"$f":"COUNTIFS(OFFSET(Tipe_Mesin,0,1+COLUMN()-COLUMN($B$2)),$B$2,Tipe_Mesin,$B8)","v":1},{"$f":"COUNTIFS(OFFSET(Tipe_Mesin,0,1+COLUMN()-COLUMN($B$2)),$B$2,Tipe_Mesin,$B8)","v":1},{"$f":"COUNTIFS(OFFSET(Tipe_Mesin,0,1+COLUMN()-COLUMN($B$2)),$B$2,Tipe_Mesin,$B8)","v":1},{"$f":"COUNTIFS(OFFSET(Tipe_Mesin,0,1+COLUMN()-COLUMN($B$2)),$B$2,Tipe_Mesin,$B8)","v":1},{"$f":"COUNTIFS(OFFSET(Tipe_Mesin,0,1+COLUMN()-COLUMN($B$2)),$B$2,Tipe_Mesin,$B8)","v":1},{"$f":"COUNTIFS(OFFSET(Tipe_Mesin,0,1+COLUMN()-COLUMN($B$2)),$B$2,Tipe_Mesin,$B8)","v":1}]